[Event "Chinese League Division-A 2024"]
[Site "Fuling Chongqing"]
[Date "2024.06.27"]
[Round "2.28"]
[White "Cao, Qingfeng"]
[Black "Gong, Sunle"]
[Result "1-0"]
[ECO "E11"]
[WhiteElo "2189"]
[BlackElo "2239"]
[Annotator "RC"]
[PlyCount "81"]
[EventDate "2024.06.28"]
[EventType "team-tourn"]
[EventCountry "CHN"]
[SourceTitle "playchess.com"]
[Source "ChessBase"]
[SourceQuality "1"]
[TimeControl "40/5400+30:1800+30"]

1. d4 {[%emt 0:00:02]} d5 {[%emt 0:00:15]} 2. c4 {[%emt 0:00:10]} e6 {[%emt 0:00:04]} 3. Nf3 {[%emt 0:00:52]} Nf6 {[%emt 0:00:44]} 4. g3 {[%emt 0:00:18]} Bb4+ {[%emt 0:00:51]} 5. Bd2 {[%emt 0:00:58]} Be7 {[%emt 0:00:27]} 6. Bg2 {[%emt 0:00:25]} O-O {[%emt 0:00:07]} 7. O-O {[%emt 0:00:18]} Nbd7 {[%emt 0:01:13]} 8. Bc3 {[%emt 0:02:25]} dxc4 {[%emt 0:10:14]} 9. Nbd2 {[%emt 0:01:25]} b5 {[%emt 0:02:35]} 10. Ne5 {[%emt 0:02:07]} Nd5 {[%emt 0:00:25]} 11. Nc6 {[%emt 0:01:21]} Qe8 {[%emt 0:00:03]} 12. a4 {[%emt 0:02:33]} Bb7 {[%emt 0:07:03]} 13. Nxe7+ {[%emt 0:08:12]} Qxe7 {[%emt 0:00:05]} 14. axb5 {[%emt 0:00:11]} N7b6 {[%emt 0:02:59]} 15. Ba5 {[%emt 0:10:24]} Qd7 {[%emt 0:03:14]} 16. e4 {[%emt 0:15:11]} Ne7 {[%emt 0:12:08]} 17. Bc3 {[%emt 0:11:46]} Qxb5 {[%emt 0:06:08]} 18. Qg4 {[%emt 0:04:04]} Na4 {[%emt 0:28:08]} 19. Qe2 {[%emt 0:13:22]} c5 {[%emt 0:01:24]} 20. Qxc4 {[%emt 0:04:12]} Bc6 {[%emt 0:08:39]} 21. Rfc1 {[%emt 0:04:34]} Nxc3 {[%emt 0:08:37]} 22. bxc3 {[%emt 0:02:35]} Qxc4 {[%emt 0:00:14]} 23. Nxc4 {[%emt 0:00:06]} cxd4 {[%emt 0:00:20]} 24. cxd4 {[%emt 0:00:03]} f5 {[%emt 0:00:53]} 25. d5 {[%emt 0:01:50]} exd5 {[%emt 0:02:23]} 26. Ne5 {[%emt 0:00:20]} Rfc8 {[%emt 0:00:24]} 27. Nxc6 {[%emt 0:00:46]} Rxc6 {[%emt 0:00:25]} 28. Rxc6 {[%emt 0:01:38]} Nxc6 {[%emt 0:00:01]} 29. exd5 {[%emt 0:00:32]} Nb4 {[%emt 0:00:47]} 30. Ra5 {[%emt 0:00:58]} g6 {[%emt 0:02:47]} 31. Kf1 {[%emt 0:02:13]} a6 {[%emt 0:00:13]} 32. Ke2 {[%emt 0:01:31]} Rc8 {[%emt 0:01:40]} 33. Ke3 {[%emt 0:00:56]} Kf7 {[%emt 0:00:05]} 34. Bf1 {[%emt 0:02:08]} Rd8 {[%emt 0:00:14]} 35. Bc4 {[%emt 0:01:11]} Ke7 {[%emt 0:00:16]} 36. Kd2 {[%emt 0:00:17]} Nc6 {[%emt 0:00:47]} 37. Rxa6 {[%emt 0:00:30]} Nb4 {[%emt 0:01:13]} 38. Re6+ {[%emt 0:03:56]} Kf8 {[%emt 0:00:46]} 39. d6 {[%emt 0:00:15]} Rc8 {[%emt 0:00:24]} 40. d7 {[%emt 0:00:00]} Rd8 {[%emt 0:00:00]} 41. Bb5 {[%emt 0:01:46]} 1-0

[Event "Chinese League Division-A 2024"]
[Site "Fuling Chongqing"]
[Date "2024.06.27"]
[Round "2.29"]
[White "Ju, Wenjun"]
[Black "Sun, Fanghui"]
[Result "1-0"]
[ECO "B72"]
[WhiteElo "2558"]
[BlackElo "2115"]
[Annotator "TA"]
[PlyCount "59"]
[EventDate "2024.06.28"]
[EventType "team-tourn"]
[EventCountry "CHN"]
[SourceTitle "playchess.com"]
[Source "ChessBase"]
[SourceQuality "1"]
[TimeControl "40/5400+30:1800+30"]

{[%evp 14,59,22,27,20,20,27,20,46,22,23,35,75,59,76,44,112,111,113,100,131,115,114,79,129,129,168,138,207,212,275,269,262,240,239,236,233,225,247,243,238,220,345,348,377,400,420,382]} 1. e4 {[%emt 0:00:03]} c5 {[%emt 0:00:05]} 2. Nf3 {[%emt 0:00:03]} d6 {[%emt 0:00:05]} 3. d4 {[%emt 0:00:09]} cxd4 {[%emt 0:00:05]} 4. Nxd4 {[%emt 0:00:02]} Nf6 {[%emt 0:00:06]} 5. Nc3 {[%emt 0:00:03]} a6 {[%emt 0:00:05]} 6. Bd3 {[%emt 0:00:04]} g6 {[%emt 0:00:06]} 7. f3 {[%emt 0:00:12]} Bg7 {[%emt 0:00:53]} 8. Be3 {[%emt 0:00:04]} Nc6 {[%emt 0:05:19]} 9. Qd2 {[%emt 0:02:28]} O-O {[%emt 0:03:58]} 10. O-O-O {[%emt 0:00:15]} d5 {[%emt 0:05:58] The position is equal.} 11. Nxc6 {[%emt 0:01:03]} bxc6 {[%emt 0:00:04]} 12. Bh6 {[%emt 0:00:03]} dxe4 {[%emt 0:14:51]} 13. Bxg7 {[%emt 0:14:55]} (13. fxe4 $6 Bxh6 14. Qxh6 Qa5 $11) (13. Nxe4 {simplifies} Nxe4 14. Bxe4 Qxd2+ 15. Bxd2 Be6 16. Bxc6 Rac8 17. Ba4) 13... Kxg7 {[%emt 0:00:08]} 14. Bxe4 {[%emt 0:00:10][%cal Bd3e4,Be4c6,Bc6a4][%mdl 32]} Qa5 {[%emt 0:06:03]} (14... Qc7 $14) 15. Bxc6 $16 {[%emt 0:03:10]} Rb8 {[%emt 0:00:06] [#] Hoping for ...Qb6.} 16. Ba4 {[%emt 0:06:45]} Bf5 {[%emt 0:07:37]} 17. g4 {[%emt 0:08:30]} Be6 {[%emt 0:00:36]} 18. Bb3 {[%emt 0:05:20]} Rfc8 {[%emt 0:10:32]} (18... Bxb3 $142 19. cxb3 (19. axb3 Qa1+ 20. Nb1 Rxb3 $11) 19... Rfd8) 19. Kb1 {[%emt 0:01:58]} ({Don't take} 19. g5 Bxb3 20. gxf6+ (20. axb3 Qa1+ 21. Nb1 Nh5 $16) (20. cxb3 Qxa2 21. gxf6+ exf6 $14) 20... exf6 21. cxb3 (21. axb3 $2 Qa1+ 22. Nb1 Rxb3 $19) 21... Qxa2 $14) 19... Ne8 {[%emt 0:09:42]} 20. Bxe6 {[%emt 0:08:53]} fxe6 {[%emt 0:01:21]} (20... Qxc3 $16 21. Bb3 (21. Bxc8 $2 Qxb2#) 21... Qxd2 22. Rxd2 Nd6) 21. Ne4 $18 {[%emt 0:00:51]} Qa3 {[%emt 0:04:25][%csl Gb8][%cal Ra3b2] [#]} 22. Qd4+ {[%emt 0:02:03]} Kg8 {[%emt 0:00:30]} 23. Rd3 {[%emt 0:00:59]} Qa5 {[%emt 0:01:27]} 24. Rb3 {[%emt 0:08:25]} Qc7 {[%emt 0:03:41]} 25. Rc3 {[%emt 0:03:08] Active counter play!} Qb7 {[%emt 0:06:33][%csl Gb8][%cal Rb7b2]} 26. Rxc8 {[%emt 0:00:20]} Rxc8 {[%emt 0:00:05] Black is weak on the dark squares} 27. Rd1 {[%emt 0:01:49]} Rb8 {[%emt 0:06:32]} (27... Qc6 $142 28. Qd3 Nd6 29. Nxd6 Rd8) 28. Qe5 {[%emt 0:02:43]} Ng7 {[%emt 0:00:50]} 29. Nc5 {[%emt 0:03:04][%csl LRb7,LRe6]} Qc8 {[%emt 0:04:17]} 30. Rd7 {[%emt 0:01:14] Weighted Error Value: White=0.09 (flawless) /Black=0.32.  Mistake:       	---       	Black=4      Inaccurate:     	White=2     	Black=4      OK:         	White=12    	Black=3      Best:        	White=1     	---} 1-0

[Event "Chinese League Division-A 2024"]
[Site "Fuling Chongqing"]
[Date "2024.06.27"]
[Round "2.30"]
[White "Zhang, Lanlin"]
[Black "Ni, Shiqun"]
[Result "1-0"]
[ECO "B17"]
[WhiteElo "2161"]
[BlackElo "2352"]
[Annotator "RC"]
[PlyCount "107"]
[EventDate "2024.06.28"]
[EventType "team-tourn"]
[EventCountry "CHN"]
[SourceTitle "playchess.com"]
[Source "ChessBase"]
[SourceQuality "1"]
[TimeControl "40/5400+30:1800+30"]

1. e4 {[%emt 0:00:02]} c6 {[%emt 0:00:13]} 2. d4 {[%emt 0:00:46]} d5 {[%emt 0:00:08]} 3. Nc3 {[%emt 0:00:03]} dxe4 {[%emt 0:00:05]} 4. Nxe4 {[%emt 0:00:03]} Nd7 {[%emt 0:00:08]} 5. Nf3 {[%emt 0:00:04]} Ngf6 {[%emt 0:00:06]} 6. Bd3 {[%emt 0:00:02]} Nxe4 {[%emt 0:03:47]} 7. Bxe4 {[%emt 0:00:04]} Nf6 {[%emt 0:00:15]} 8. Bd3 {[%emt 0:00:04]} Bg4 {[%emt 0:03:02]} 9. c3 {[%emt 0:00:04]} Qd5 {[%emt 0:04:57]} 10. Be2 {[%emt 0:00:13]} e6 {[%emt 0:00:06]} 11. h3 {[%emt 0:03:05]} Bh5 {[%emt 0:00:24]} 12. O-O {[%emt 0:03:32]} Be7 {[%emt 0:00:25]} 13. Ne5 {[%emt 0:04:52]} Bxe2 {[%emt 0:00:27]} 14. Qxe2 {[%emt 0:00:04]} O-O {[%emt 0:00:49]} 15. Be3 {[%emt 0:05:47]} Rfd8 {[%emt 0:12:49]} 16. Rfd1 {[%emt 0:00:14]} h6 {[%emt 0:01:22]} 17. a4 {[%emt 0:07:31]} a5 {[%emt 0:07:15]} 18. Nc4 {[%emt 0:04:56]} Qe4 {[%emt 0:04:49]} 19. Rd3 {[%emt 0:19:44]} Nd5 {[%emt 0:03:04]} 20. Re1 {[%emt 0:04:17]} Bd6 {[%emt 0:10:15]} 21. Qd1 {[%emt 0:10:36]} Qf5 {[%emt 0:12:00]} 22. Nxd6 {[%emt 0:07:50]} Rxd6 {[%emt 0:00:03]} 23. Bc1 {[%emt 0:00:05]} Rad8 {[%emt 0:18:59]} 24. Rg3 {[%emt 0:01:53]} Kh8 {[%emt 0:03:51]} 25. Re5 {[%emt 0:04:10]} Qh7 {[%emt 0:00:10]} 26. Qh5 {[%emt 0:04:19]} R6d7 {[%emt 0:00:58]} 27. Kh2 {[%emt 0:02:34]} Nf6 {[%emt 0:01:17]} 28. Qf3 {[%emt 0:01:13]} Rd5 {[%emt 0:00:37]} 29. Bf4 {[%emt 0:00:11]} R8d7 {[%emt 0:02:26]} 30. Qe2 {[%emt 0:03:43]} Rd8 {[%emt 0:02:04]} 31. Rf3 {[%emt 0:02:07]} R8d7 {[%emt 0:03:15]} 32. Bg3 {[%emt 0:01:31]} Qb1 {[%emt 0:02:26]} 33. Bh4 {[%emt 0:00:57]} Rxe5 {[%emt 0:01:12]} 34. Qxe5 {[%emt 0:03:32]} Ne4 {[%emt 0:00:02]} 35. Rf4 {[%emt 0:04:52]} Nd6 {[%emt 0:03:23]} 36. Rg4 {[%emt 0:02:29]} f5 {[%emt 0:00:23]} 37. Rg6 {[%emt 0:00:58]} Qe4 {[%emt 0:00:53]} 38. Rxh6+ {[%emt 0:00:23]} Kg8 {[%emt 0:00:00]} 39. Qxe6+ {[%emt 0:00:09]} Qxe6 {[%emt 0:00:06]} 40. Rxe6 {[%emt 0:00:00]} Nc4 {[%emt 0:00:00]} 41. b3 {[%emt 0:00:17]} Nd2 {[%emt 0:01:27]} 42. Re5 {[%emt 0:00:32]} Nxb3 {[%emt 0:06:04]} 43. Rxf5 {[%emt 0:00:06]} Rd5 {[%emt 0:00:05]} 44. Rxd5 {[%emt 0:04:41]} cxd5 {[%emt 0:00:03]} 45. Bd8 {[%emt 0:01:45]} Kf7 {[%emt 0:00:17]} 46. Bb6 {[%emt 0:00:03]} Ke6 {[%emt 0:02:19]} 47. g4 {[%emt 0:00:09]} Kd6 {[%emt 0:01:50]} 48. g5 {[%emt 0:00:15]} Kc6 {[%emt 0:01:14]} 49. Bd8 {[%emt 0:02:28]} Kd7 {[%emt 0:00:31]} 50. Bb6 {[%emt 0:01:04]} Kc6 {[%emt 0:00:01]} 51. f4 {[%emt 0:17:01]} Kxb6 {[%emt 0:00:40]} 52. f5 {[%emt 0:00:05]} Nd2 {[%emt 0:00:17]} 53. f6 {[%emt 0:00:09]} Nf3+ {[%emt 0:01:05]} 54. Kh1 {[%emt 0:00:09]} 1-0

[Event "Chinese League Division-A 2024"]
[Site "Fuling Chongqing"]
[Date "2024.06.28"]
[Round "3.1"]
[White "Xu, Yi"]
[Black "Li, Chao b"]
[Result "1/2-1/2"]
[ECO "B52"]
[WhiteElo "2496"]
[BlackElo "2645"]
[Annotator "TA"]
[PlyCount "69"]
[EventDate "2024.06.28"]
[EventType "team-tourn"]
[EventCountry "CHN"]
[SourceTitle "playchess.com"]
[Source "ChessBase"]
[SourceQuality "1"]
[TimeControl "40/5400+30:1800+30"]

{[%evp 16,69,27,6,27,4,9,0,0,0,0,0,0,0,0,0,0,0,0,0,0,0,0,0,0,0,0,0,0,0,0,0,0,0,0,0,0,0,0,0,0,0,0,0,0,0,0,0,0,0,0,0,0,0,0,0]} 1. e4 {[%emt 0:00:04]} c5 {[%emt 0:01:37]} 2. Nf3 {[%emt 0:00:16]} d6 {[%emt 0:00:31]} 3. Bb5+ {[%emt 0:00:22]} Bd7 {[%emt 0:03:13]} 4. Bxd7+ {[%emt 0:02:58]} Qxd7 {[%emt 0:00:07]} 5. c4 {[%emt 0:00:22]} Nf6 {[%emt 0:03:51]} 6. Nc3 {[%emt 0:05:15]} g6 {[%emt 0:02:05]} 7. d4 {[%emt 0:02:23]} cxd4 {[%emt 0:00:05]} 8. Nxd4 {[%emt 0:00:04]} Bg7 {[%emt 0:00:05]} 9. O-O {[%emt 0:02:47]} O-O {[%emt 0:00:06]} 10. f3 {[%emt 0:00:53]} Rc8 {[%emt 0:01:42] The position is equal.} 11. b3 {[%emt 0:01:28]} d5 {[%emt 0:00:49]} 12. exd5 {[%emt 0:02:21]} Nxd5 {[%emt 0:00:08]} 13. Nxd5 {[%emt 0:00:14]} e6 {[%emt 0:00:04][%cal Be7e6,Be6d5,Bd5c4][%mdl 32]} 14. Bh6 {[%emt 0:05:28] [#] Strongly threatening Bxg7.} exd5 {[%emt 0:00:08]} 15. Bxg7 {[%emt 0:00:06]} Kxg7 {[%emt 0:00:03]} 16. Nb5 {[%emt 0:03:51] Black must now prevent Qd4+.} dxc4 {[%emt 0:01:13]} 17. Nd6 {[%emt 0:00:53]} Rd8 {[%emt 0:00:20]} 18. Nxb7 {[%emt 0:01:26]} Qxd1 {[%emt 0:00:13]} 19. Rfxd1 {[%emt 0:00:30]} (19. Raxd1 Rxd1 20. Rxd1 cxb3) 19... Rxd1+ {[%emt 0:00:07]} 20. Rxd1 {[%emt 0:00:00]} cxb3 {[%emt 0:00:03]} 21. axb3 $11 {[%emt 0:00:00][%mdl 4096] Endgame. KRN-KRN} Nc6 {[%emt 0:00:07] Repels Rd8} 22. Rd6 {[%emt 0:00:22]} Rb8 {[%emt 0:00:06]} 23. Rxc6 {[%emt 0:00:08]} Rxb7 {[%emt 0:00:03] KR-KR} 24. Ra6 {[%emt 0:00:09]} Rxb3 {[%emt 0:00:09]} 25. Rxa7 {[%emt 0:00:07]} h5 {[%emt 0:00:06]} 26. Kf2 {[%emt 0:01:16]} h4 {[%emt 0:00:11]} 27. Ra4 {[%emt 0:00:58]} Rb2+ {[%emt 0:00:05]} 28. Kg1 {[%emt 0:00:08]} Rb1+ {[%emt 0:00:05]} 29. Kf2 {[%emt 0:00:06]} g5 {[%emt 0:00:16]} 30. Rg4 {[%emt 0:01:04]} Kg6 {[%emt 0:00:26]} 31. f4 {[%emt 0:01:26]} Rb2+ {[%emt 0:00:05]} 32. Kg1 {[%emt 0:01:13]} Rb1+ {[%emt 0:00:06]} 33. Kf2 {[%emt 0:00:05]} Rb2+ {[%emt 0:00:03]} 34. Kg1 {[%emt 0:00:05]} Rb1+ {[%emt 0:00:04]} 35. Kf2 {[%emt 0:00:05] A balanced but interesting game.   Weighted Error Value: White=0.03 (flawless) /Black=0.00 (flawless) .  OK:         	White=15    	Black=12     Best:        	---       	Black=2} 1/2-1/2

[Event "Chinese League Division-A 2024"]
[Site "Fuling Chongqing"]
[Date "2024.06.28"]
[Round "3.2"]
[White "Xiu, Deshun"]
[Black "Lou, Yiping"]
[Result "1/2-1/2"]
[ECO "E11"]
[WhiteElo "2514"]
[BlackElo "2442"]
[Annotator "TA"]
[PlyCount "60"]
[EventDate "2024.06.28"]
[EventType "team-tourn"]
[EventCountry "CHN"]
[SourceTitle "playchess.com"]
[Source "ChessBase"]
[SourceQuality "1"]
[TimeControl "40/5400+30:1800+30"]

{[%evp 16,60,14,0,0,0,0,0,4,0,-4,0,-1,-10,-10,-14,-10,-6,-12,-9,-11,-13,-8,-24,0,5,3,3,6,6,7,-11,-11,-9,-6,-16,-4,-24,-25,-65,-41,-54,-45,-43,-23,-24,-21]} 1. d4 {[%emt 0:00:04]} Nf6 {[%emt 0:00:08]} 2. c4 {[%emt 0:00:11]} e6 {[%emt 0:00:12]} 3. Nf3 {[%emt 0:01:07]} d5 {[%emt 0:00:07]} 4. g3 {[%emt 0:00:38]} Bb4+ {[%emt 0:00:30]} 5. Bd2 {[%emt 0:00:09]} Be7 {[%emt 0:00:09]} 6. Bg2 {[%emt 0:00:14]} O-O {[%emt 0:00:07]} 7. O-O {[%emt 0:00:22]} c6 {[%emt 0:01:24]} 8. Qc2 {[%emt 0:04:00]} Nbd7 {[%emt 0:01:24]} 9. Bg5 {[%emt 0:09:20]} b6 {[%emt 0:07:04]} 10. Nbd2 {[%emt 0:00:12]} h6 {[%emt 0:03:10]} 11. Bxf6 {[%emt 0:00:15]} Bxf6 {[%emt 0:00:14] The position is equal.} 12. e4 {[%emt 0:02:41]} Bb7 {[%emt 0:00:35]} 13. Rac1 {[%emt 0:23:54]} Rc8 {[%emt 0:04:20]} 14. e5 {[%emt 0:05:33]} Be7 {[%emt 0:00:13]} 15. cxd5 {[%emt 0:00:06]} cxd5 {[%emt 0:00:06]} 16. Qb1 {[%emt 0:04:19]} Ba6 {[%emt 0:03:07]} 17. Rxc8 {[%emt 0:02:48]} Qxc8 {[%emt 0:00:13]} 18. Rc1 {[%emt 0:00:06]} Qb7 {[%emt 0:00:10]} 19. b4 {[%emt 0:02:17] [#] b5 would now be deadly.} Rc8 {[%emt 0:02:22]} 20. Rxc8+ {[%emt 0:00:52]} Qxc8 {[%emt 0:00:05]} 21. b5 {[%emt 0:00:10]} Bb7 {[%emt 0:00:06]} 22. Qb2 {[%emt 0:01:15]} a6 {[%emt 0:00:59]} 23. Bf1 {[%emt 0:04:34][%cal Bg2f1,Bf1b5,Bb5a4,Ba4c2][%mdl 32]} axb5 {[%emt 0:01:05]} 24. Bxb5 {[%emt 0:00:06]} Nb8 {[%emt 0:03:08]} 25. h4 {[%emt 0:08:38]} Ba6 {[%emt 0:03:02]} 26. Ba4 {[%emt 0:11:09]} Qc7 {[%emt 0:02:17]} 27. Bc2 {[%emt 0:02:07]} Qc6 {[%emt 0:05:20]} 28. Bb1 {[%emt 0:00:57]} Nd7 {[%emt 0:00:59]} 29. Kg2 {[%emt 0:01:57]} Kf8 {[%emt 0:04:23]} 30. Ne1 {[%emt 0:00:57]} Ke8 {[%emt 0:02:12] Weighted Error Value: White=0.06 (flawless) /Black=0.05 (flawless) .  Inaccurate:     	White=1     	Black=1      OK:         	White=11    	Black=10} 1/2-1/2

[Event "Chinese League Division-A 2024"]
[Site "Fuling Chongqing"]
[Date "2024.06.28"]
[Round "3.3"]
[White "Meng, Yihan"]
[Black "Zhang, Di"]
[Result "1/2-1/2"]
[ECO "B27"]
[WhiteElo "2268"]
[BlackElo "2362"]
[Annotator "RC"]
[PlyCount "146"]
[EventDate "2024.06.28"]
[EventType "team-tourn"]
[EventCountry "CHN"]
[SourceTitle "playchess.com"]
[Source "ChessBase"]
[SourceQuality "1"]
[TimeControl "40/5400+30:1800+30"]

1. e4 {[%emt 0:00:03]} c5 {[%emt 0:00:09]} 2. Nf3 {[%emt 0:00:06]} g6 {[%emt 0:00:14]} 3. c3 {[%emt 0:00:33]} d5 {[%emt 0:00:12]} 4. e5 {[%emt 0:00:14]} a6 {[%emt 0:00:27]} 5. d4 {[%emt 0:01:01]} Nc6 {[%emt 0:00:12]} 6. Be2 {[%emt 0:02:55]} Bg7 {[%emt 0:00:13]} 7. O-O {[%emt 0:00:56]} f6 {[%emt 0:00:08]} 8. Bf4 {[%emt 0:04:06]} Qb6 {[%emt 0:09:03]} 9. Qd2 {[%emt 0:11:42]} cxd4 {[%emt 0:18:22]} 10. cxd4 {[%emt 0:00:32]} g5 {[%emt 0:00:26]} 11. Be3 {[%emt 0:20:41]} g4 {[%emt 0:00:41]} 12. Nc3 {[%emt 0:11:54]} gxf3 {[%emt 0:31:58]} 13. Nxd5 {[%emt 0:00:09]} Qd8 {[%emt 0:00:05]} 14. Bxf3 {[%emt 0:00:37]} e6 {[%emt 0:06:04]} 15. Nb6 {[%emt 0:33:04]} Qxb6 {[%emt 0:14:18]} 16. d5 {[%emt 0:00:06]} Qa5 {[%emt 0:00:54]} 17. dxc6 {[%emt 0:02:11]} Qxd2 {[%emt 0:00:31]} 18. Bxd2 {[%emt 0:00:04]} b6 {[%emt 0:00:58]} 19. Bh5+ {[%emt 0:04:24]} Kd8 {[%emt 0:00:07]} 20. Rfd1 {[%emt 0:01:16]} Kc7 {[%emt 0:00:09]} 21. Bb4 {[%emt 0:00:29]} Kb8 {[%emt 0:03:25]} 22. c7+ {[%emt 0:01:48]} Ka7 {[%emt 0:00:04]} 23. Bf3 {[%emt 0:01:02]} fxe5 {[%emt 0:03:15]} 24. Rd6 {[%emt 0:01:39]} a5 {[%emt 0:05:29]} 25. Bd2 {[%emt 0:00:39]} e4 {[%emt 0:01:50]} 26. Bxe4 {[%emt 0:00:46]} Be5 {[%emt 0:00:01]} 27. Rd8 {[%emt 0:00:30]} Bxc7 {[%emt 0:00:23]} 28. Rf8 {[%emt 0:00:08]} Bb7 {[%emt 0:01:08]} 29. Rf7 {[%emt 0:00:16]} Bxe4 {[%emt 0:00:18]} 30. Rxc7+ {[%emt 0:00:03]} Ka6 {[%emt 0:00:06]} 31. Bc3 {[%emt 0:00:11]} Nh6 {[%emt 0:00:42]} 32. Bxh8 {[%emt 0:00:04]} Rxh8 {[%emt 0:00:04]} 33. f3 {[%emt 0:00:18]} Bd5 {[%emt 0:00:08]} 34. a3 {[%emt 0:00:28]} Nf5 {[%emt 0:00:16]} 35. Kf2 {[%emt 0:00:31]} h5 {[%emt 0:01:06]} 36. Rac1 {[%emt 0:00:38]} Kb5 {[%emt 0:01:22]} 37. Rc8 {[%emt 0:01:36]} Rh6 {[%emt 0:00:07]} 38. Rb8 {[%emt 0:00:16]} Rh7 {[%emt 0:02:06]} 39. Rcc8 {[%emt 0:00:46]} h4 {[%emt 0:01:48]} 40. Rh8 {[%emt 0:00:00]} Rc7 {[%emt 0:00:00]} 41. Rbc8 {[%emt 0:01:46]} Ra7 {[%emt 0:02:31]} 42. Rb8 {[%emt 0:05:05]} Kc5 {[%emt 0:08:09]} 43. Rbc8+ {[%emt 0:03:06]} Kd4 {[%emt 0:02:43]} 44. g3 {[%emt 0:12:27]} hxg3+ {[%emt 0:02:13]} 45. hxg3 {[%emt 0:00:05]} b5 {[%emt 0:02:12]} 46. Rb8 {[%emt 0:00:36]} Nd6 {[%emt 0:03:34]} 47. Rhd8 {[%emt 0:02:58]} Nc4 {[%emt 0:04:10]} 48. g4 {[%emt 0:05:55]} Ne5 {[%emt 0:04:05]} 49. Rxb5 {[%emt 0:00:53]} Rf7 {[%emt 0:00:34]} 50. Rxa5 {[%emt 0:00:23]} Rxf3+ {[%emt 0:00:31]} 51. Ke2 {[%emt 0:00:11]} Rg3 {[%emt 0:01:38]} 52. Ra4+ {[%emt 0:00:54]} Nc4 {[%emt 0:00:08]} 53. Rb4 {[%emt 0:00:59]} Ke5 {[%emt 0:02:49]} 54. Rf8 {[%emt 0:01:44]} Re3+ {[%emt 0:02:01]} 55. Kf2 {[%emt 0:01:29]} Rd3 {[%emt 0:00:10]} 56. g5 {[%emt 0:00:35]} Rd2+ {[%emt 0:00:06]} 57. Kg3 {[%emt 0:00:31]} Nd6 {[%emt 0:00:48]} 58. Kg4 {[%emt 0:00:22]} Rg2+ {[%emt 0:01:02]} 59. Kh5 {[%emt 0:00:08]} Be4 {[%emt 0:00:37]} 60. Rf1 {[%emt 0:00:56]} Bf5 {[%emt 0:00:29]} 61. Re1+ {[%emt 0:00:24]} Ne4 {[%emt 0:00:32]} 62. Rb5+ {[%emt 0:00:14]} Kf4 {[%emt 0:00:26]} 63. Rf1+ {[%emt 0:00:07]} Ke3 {[%emt 0:00:40]} 64. Rfxf5 {[%emt 0:00:55]} exf5 {[%emt 0:00:15]} 65. Rxf5 {[%emt 0:00:05]} Ng3+ {[%emt 0:00:14]} 66. Kg6 {[%emt 0:00:06]} Nxf5 {[%emt 0:00:03]} 67. Kxf5 {[%emt 0:00:03]} Kd4 {[%emt 0:01:17]} 68. g6 {[%emt 0:00:16]} Kd5 {[%emt 0:00:11]} 69. Kf6 {[%emt 0:00:08]} Rf2+ {[%emt 0:00:46]} 70. Ke7 {[%emt 0:00:04]} Rg2 {[%emt 0:00:30]} 71. Kf7 {[%emt 0:00:18]} Kd6 {[%emt 0:00:19]} 72. g7 {[%emt 0:00:05]} Rf2+ {[%emt 0:00:04]} 73. Ke8 {[%emt 0:00:27]} Ke5 {[%emt 0:00:13]} 1/2-1/2

[Event "Chinese League Division-A 2024"]
[Site "Fuling Chongqing"]
[Date "2024.06.28"]
[Round "3.4"]
[White "Li, Ruofan"]
[Black "Zhang, Xiaowen"]
[Result "1/2-1/2"]
[ECO "E04"]
[WhiteElo "2321"]
[BlackElo "2261"]
[Annotator "RC"]
[PlyCount "89"]
[EventDate "2024.06.28"]
[EventType "team-tourn"]
[EventCountry "CHN"]
[SourceTitle "playchess.com"]
[Source "ChessBase"]
[SourceQuality "1"]
[TimeControl "40/5400+30:1800+30"]

1. Nf3 {[%emt 0:00:05]} Nf6 {[%emt 0:00:11]} 2. g3 {[%emt 0:00:13]} d5 {[%emt 0:00:25]} 3. Bg2 {[%emt 0:00:06]} c5 {[%emt 0:01:44]} 4. O-O {[%emt 0:00:24]} Nc6 {[%emt 0:00:10]} 5. d4 {[%emt 0:00:12]} e6 {[%emt 0:00:35]} 6. c4 {[%emt 0:00:10]} dxc4 {[%emt 0:00:15]} 7. dxc5 {[%emt 0:00:33]} Qxd1 {[%emt 0:00:30]} 8. Rxd1 {[%emt 0:00:03]} Bxc5 {[%emt 0:00:07]} 9. Nbd2 {[%emt 0:00:49]} c3 {[%emt 0:00:08]} 10. bxc3 {[%emt 0:00:04]} O-O {[%emt 0:00:08]} 11. Bb2 {[%emt 0:01:31]} Bd7 {[%emt 0:05:29]} 12. Nb3 {[%emt 0:00:22]} Be7 {[%emt 0:00:07]} 13. c4 {[%emt 0:00:05]} Rfd8 {[%emt 0:00:18]} 14. Nfd4 {[%emt 0:01:40]} Rac8 {[%emt 0:00:29]} 15. Nb5 {[%emt 0:01:23]} b6 {[%emt 0:00:11]} 16. Nd6 {[%emt 0:01:14]} Bxd6 {[%emt 0:03:39]} 17. Rxd6 {[%emt 0:00:10]} Be8 {[%emt 0:00:21]} 18. Rxd8 {[%emt 0:20:50]} Nxd8 {[%emt 0:02:38]} 19. Rc1 {[%emt 0:00:43]} Bc6 {[%emt 0:00:14]} 20. f3 {[%emt 0:07:01]} Bb7 {[%emt 0:10:08]} 21. c5 {[%emt 0:12:31]} Nd7 {[%emt 0:04:27]} 22. cxb6 {[%emt 0:00:20]} Rxc1+ {[%emt 0:00:15]} 23. Bxc1 {[%emt 0:00:44]} axb6 {[%emt 0:02:22]} 24. e4 {[%emt 0:00:38]} e5 {[%emt 0:09:10]} 25. Bf1 {[%emt 0:06:10]} Bc6 {[%emt 0:00:31]} 26. Kf2 {[%emt 0:00:59]} Nb7 {[%emt 0:02:27]} 27. Ba3 {[%emt 0:15:44]} Ndc5 {[%emt 0:15:48]} 28. Nxc5 {[%emt 0:00:43]} Nxc5 {[%emt 0:01:55]} 29. Bc4 {[%emt 0:03:01]} Kf8 {[%emt 0:03:02]} 30. Ke3 {[%emt 0:01:42]} Ke7 {[%emt 0:04:17]} 31. Bb4 {[%emt 0:03:31]} f6 {[%emt 0:02:20]} 32. h4 {[%emt 0:01:43]} Kd7 {[%emt 0:03:45]} 33. Bg8 {[%emt 0:04:37]} h6 {[%emt 0:00:04]} 34. Bc4 {[%emt 0:00:05]} Kd6 {[%emt 0:00:31]} 35. Bf1 {[%emt 0:00:14]} Kc7 {[%emt 0:04:01]} 36. Bc4 {[%emt 0:04:13]} Kd6 {[%emt 0:00:53]} 37. Kd2 {[%emt 0:04:02]} Kd7 {[%emt 0:03:20]} 38. Bf1 {[%emt 0:09:11]} Kd6 {[%emt 0:02:09]} 39. Kc3 {[%emt 0:00:37]} Ba4 {[%emt 0:02:23]} 40. Bc4 {[%emt 0:00:00]} Bd1 {[%emt 0:00:00]} 41. f4 {[%emt 0:00:39]} Kc6 {[%emt 0:19:47]} 42. Bd5+ {[%emt 0:08:28]} Kb5 {[%emt 0:00:04]} 43. Bc4+ {[%emt 0:00:04]} Kc6 {[%emt 0:00:03]} 44. Bd5+ {[%emt 0:06:04]} Kb5 {[%emt 0:00:06]} 45. Bc4+ {[%emt 0:00:03]} 1/2-1/2